fUSD/lending_fUSD_20250616
["ID","MTS","AMOUNT","RATE_DAILY","PERIOD"]
[366053295,1750036249316,-806.98,0.00016438,2]
[366053296,1750036249326,-2190.7,0.00016438,2]
[366053297,1750036249336,-490.0,0.00016438,2]
[366053298,1750036249346,-490.0,0.00016438,2]
[366053299,1750036249355,-490.0,0.00016438,2]
[366053300,1750036249365,-490.0,0.00016438,2]
[366053301,1750036249375,-2919.97,0.00016438,2]
[366053302,1750036249385,-1235.25,0.00016438,2]
[366053303,1750036249395,-490.0,0.00016438,2]
[366053304,1750036249406,-1240.32,0.00016438,2]
[366053305,1750036249416,-490.0,0.00016438,2]
[366053306,1750036249425,-490.0,0.00016438,2]
[366053307,1750036249435,-880.66,0.00016438,2]
[366053308,1750036249445,-490.0,0.00016438,2]
[366053309,1750036249455,-500.0,0.00016438,2]
[366053310,1750036249465,-2927.86,0.00016438,2]
[366053311,1750036249475,-150.0,0.00016438,2]
[366053312,1750036249486,-490.0,0.00016438,2]
[366053313,1750036249496,-1411.31,0.00016438,2]
[366053314,1750036249505,-490.0,0.00016438,2]
[366053315,1750036249514,-490.0,0.00016438,2]
[366053316,1750036249524,-677.93,0.00016438,2]
[366053317,1750036249533,-1907.73,0.00016438,2]
[366053318,1750036249543,-490.0,0.00016438,2]
[366053319,1750036249552,-2451.95,0.00016438,2]
[366053320,1750036249561,-2783.1,0.00016438,2]
[366053321,1750036249571,-154.56431373,0.00016438,2]
[366053322,1750036249580,-490.0,0.00016438,2]
[366053323,1750036249589,-490.0,0.00016438,2]
[366053324,1750036249599,-568.39,0.00016438,2]
[366053325,1750036249609,-490.0,0.00016438,2]
[366053326,1750036249618,-676.84,0.00016438,2]
[366053327,1750036249627,-490.0,0.00016438,2]
[366053328,1750036249637,-490.0,0.00016438,2]
[366053329,1750036249646,-714.04,0.00016438,2]
[366053330,1750036249656,-815.83,0.00016438,2]
[366053331,1750036249665,-1117.67,0.00016438,2]
[366053332,1750036249674,-490.0,0.00016438,2]
[366053333,1750036249683,-759.84,0.00016438,2]
[366053334,1750036249693,-490.0,0.00016438,2]
[366053335,1750036249702,-490.0,0.00016438,2]
[366053336,1750036249834,-601.58,0.00016438,2]
[366053337,1750036249845,-1718.39,0.00016438,2]
[366053338,1750036249855,-490.0,0.00016438,2]
[366053339,1750036249865,-1857.24,0.00016438,2]
[366053340,1750036249875,-2124.99,0.00016438,2]
[366053341,1750036249885,-490.0,0.00016438,2]
[366053342,1750036249896,-490.0,0.00016438,2]
[366053343,1750036249907,-3687.53,0.00016438,2]
[366053344,1750036249917,-554.79,0.00016438,2]
[366053345,1750036249927,-490.0,0.00016438,2]
[366053346,1750036249937,-490.0,0.00016438,2]
[366053347,1750036249947,-490.0,0.00016438,2]
[366053348,1750036249956,-10765.86,0.00016438,2]
[366053349,1750036249966,-1775.87,0.00016438,2]
[366053350,1750036249975,-2514.12,0.00016438,2]
[366053351,1750036249986,-490.0,0.00016438,2]
[366053352,1750036249995,-218.33934159,0.00016438,2]
[366053353,1750036250005,-490.0,0.00016438,2]
[366053354,1750036250014,-490.0,0.00016438,2]
[366053355,1750036250023,-4860.92,0.00016438,2]
[366053356,1750036250033,-641.62,0.00016438,2]
[366053357,1750036250042,-490.0,0.00016438,2]
[366053358,1750036250052,-1276.11,0.00016438,2]
[366053359,1750036250062,-2779.59,0.00016438,2]
[366053360,1750036250071,-602.6,0.00016438,2]
[366053361,1750036250080,-636.27,0.00016438,2]
[366053362,1750036250089,-8716.09,0.00016438,2]
[366053363,1750036250099,-1850.33,0.00016438,2]
[366053364,1750036250108,-1639.88,0.00016438,2]
[366053365,1750036250118,-490.0,0.00016438,2]
[366053366,1750036250127,-490.0,0.00016438,2]
[366053367,1750036250137,-1373.46,0.00016438,2]
[366053368,1750036250146,-2204.94,0.00016438,2]
[366053369,1750036250155,-490.0,0.00016438,2]
[366053370,1750036250165,-490.0,0.00016438,2]
[366053371,1750036250174,-3177.57,0.00016438,2]
[366053372,1750036250183,-490.0,0.00016438,2]
[366053373,1750036250193,-490.0,0.00016438,2]
[366053374,1750036250203,-490.0,0.00016438,2]
[366053375,1750036250212,-1317.06,0.00016438,2]
[366053376,1750036250221,-2657.31,0.00016438,2]
[366053377,1750036250231,-2507.82,0.00016438,2]
[366053378,1750036250240,-710.78,0.00016438,2]
[366053379,1750036250250,-2166.48,0.00016438,2]
[366053380,1750036250259,-490.0,0.00016438,2]
[366053381,1750036250269,-490.0,0.00016438,2]
[366053382,1750036250278,-490.0,0.00016438,2]
[366053383,1750036250287,-490.0,0.00016438,2]
[366053384,1750036250296,-282.63120616,0.00016438,2]
[366053385,1750036250305,-463.6080084,0.00016438,2]
[366053386,1750036250314,-1658.12,0.00016438,2]
[366053387,1750036250323,-490.0,0.00016438,2]
[366053388,1750036250332,-5259.91,0.00016438,2]
[366053389,1750036250341,-636.6,0.00016438,2]
[366053390,1750036250351,-490.0,0.00016438,2]
[366053391,1750036250360,-691.28,0.00016438,2]
[366053392,1750036250370,-490.0,0.00016438,2]
[366053393,1750036250379,-1834.9,0.00016438,2]
[366053394,1750036250388,-2750.55,0.00016438,2]
[366053395,1750036250398,-490.0,0.00016438,2]
[366053396,1750036250406,-1537.8,0.00016438,2]
[366053397,1750036250416,-1483.79,0.00016438,2]
[366053398,1750036250424,-5598.11,0.00016438,2]
[366053399,1750036250433,-224.458841,0.00016438,2]
[366053400,1750036250443,-960.31,0.00016438,2]
[366053401,1750036250452,-490.0,0.00016438,2]
[366053402,1750036250462,-490.0,0.00016438,2]
[366053403,1750036250471,-224.458841,0.00016438,2]
[366053404,1750036250481,-224.458841,0.00016438,2]
[366053405,1750036250490,-274.89861431,0.00016438,2]
[366053406,1750036250500,-490.0,0.00016438,2]
[366053407,1750036250510,-298.373844,0.00016438,2]
[366053408,1750036250519,-490.0,0.00016438,2]
[366053409,1750036250528,-298.373844,0.00016438,2]
[366053410,1750036250539,-224.458841,0.00016438,2]
[366053411,1750036250548,-224.458841,0.00016438,2]
[366053412,1750036250557,-224.458841,0.00016438,2]
[366053413,1750036250566,-490.0,0.00016438,2]
[366053414,1750036250575,-1953.88,0.00016438,2]
[366053415,1750036250584,-151.0,0.00016438,2]
[366053416,1750036250593,-490.0,0.00016438,2]
[366053417,1750036250602,-151.0,0.00016438,2]
[366053418,1750036250610,-490.0,0.00016438,2]
[366053419,1750036250619,-298.373844,0.00016438,2]
[366053420,1750036250628,-490.0,0.00016438,2]
[366053421,1750036250637,-458.74397514,0.00016438,2]
[366053422,1750036250646,-490.0,0.00016438,2]
[366053423,1750036250655,-298.373844,0.00016438,2]
[366053424,1750036250664,-490.0,0.00016438,2]
[366053425,1750036250673,-500.0,0.00016438,2]
[366053426,1750036250682,-500.0,0.00016438,2]
[366053427,1750036250692,-500.0,0.00016438,2]
[366053428,1750036250701,-1583.09,0.00016438,2]
[366053429,1750036250710,-1289.24,0.00016438,2]
[366053430,1750036250719,-151.0,0.00016438,2]
[366053431,1750036250728,-490.0,0.00016438,2]
[366053432,1750036250738,-490.0,0.00016438,2]
[366053433,1750036250746,-151.0,0.00016438,2]
[366053434,1750036250755,-3282.78,0.00016438,2]
[366053435,1750036250765,-490.0,0.00016438,2]
[366053436,1750036250774,-490.0,0.00016438,2]
[366053437,1750036250784,-1713.6,0.00016438,2]
[366053438,1750036250794,-1438.27,0.00016438,2]
[366053439,1750036250802,-490.0,0.00016438,2]
[366053440,1750036250813,-490.0,0.00016438,2]
[366053441,1750036250824,-558.28,0.00016438,2]
[366053442,1750036250833,-490.0,0.00016438,2]
[366053443,1750036250843,-834.86,0.00016438,2]
[366053444,1750036250852,-490.0,0.00016438,2]
[366053445,1750036250862,-1124.65,0.00016438,2]
[366053446,1750036250872,-490.0,0.00016438,2]
[366053447,1750036250881,-4413.55,0.00016438,2]
[366053448,1750036250890,-12217.19,0.00016438,2]
[366053449,1750036250902,-1145.67,0.00016438,2]
[366053450,1750036250911,-1351.31,0.00016438,2]
[366053451,1750036250921,-490.0,0.00016438,2]
[366053452,1750036250930,-1209.4,0.00016438,2]
[366053453,1750036250939,-490.0,0.00016438,2]
[366053454,1750036250948,-650.97,0.00016438,2]
[366053455,1750036250958,-680.71,0.00016438,2]
[366053456,1750036250967,-6301.31,0.00016438,2]
[366053457,1750036250977,-490.0,0.00016438,2]
[366053458,1750036250987,-197.94074712,0.00016438,2]
[366053459,1750036250996,-461.51410216,0.00016438,2]
[366053460,1750036251005,-490.0,0.00016438,2]
[366053461,1750036251014,-490.0,0.00016438,2]
[366053462,1750036251024,-490.0,0.00016438,2]
[366053463,1750036251034,-664.15,0.00016438,2]
[366053464,1750036251043,-28413.21,0.00016438,2]
[366053465,1750036251053,-2281.46,0.00016438,2]
[366053466,1750036251062,-490.0,0.00016438,2]
[366053467,1750036251071,-490.0,0.00016438,2]
[366053468,1750036251080,-490.0,0.00016438,2]
[366053469,1750036251089,-1351.24,0.00016438,2]
[366053470,1750036251099,-3225.5,0.00016438,2]
[366053471,1750036251108,-563.52,0.00016438,2]
[366053472,1750036251117,-490.0,0.00016438,2]
[366053473,1750036251127,-1961.51,0.00016438,2]
[366053474,1750036251136,-490.0,0.00016438,2]
[366053475,1750036251145,-151.0,0.00016438,2]
[366053476,1750036251155,-151.0,0.00016438,2]
[366053477,1750036251164,-151.0,0.00016438,2]
[366053478,1750036251173,-2264.81,0.00016438,2]
[366053479,1750036251182,-490.0,0.00016438,2]
[366053480,1750036251191,-490.0,0.00016438,2]
[366053481,1750036251200,-5375.79,0.00016438,2]
[366053482,1750036251209,-151.0,0.00016438,2]
[366053483,1750036251218,-490.0,0.00016438,2]
[366053484,1750036251228,-151.0,0.00016438,2]
[366053485,1750036251237,-490.0,0.00016438,2]
[366053486,1750036251246,-490.0,0.00016438,2]
[366053487,1750036251256,-490.0,0.00016438,2]
[366053488,1750036251265,-1043.6,0.00016438,2]
[366053489,1750036251275,-2029.75,0.00016438,2]
[366053490,1750036251285,-287.30981323,0.00016438,2]
[366053491,1750036251294,-1731.99,0.00016438,2]
[366053492,1750036251303,-490.0,0.00016438,2]
[366053493,1750036251312,-1240.38,0.00016438,2]
[366053494,1750036251321,-490.0,0.00016438,2]
[366053495,1750036251330,-571.38,0.00016438,2]
[366053496,1750036251339,-490.0,0.00016438,2]
[366053497,1750036251348,-490.0,0.00016438,2]
[366053498,1750036251358,-8290.0,0.00016438,2]
[366053499,1750036251367,-1958.43,0.00016438,2]
[366053500,1750036251376,-603.42611066,0.00016438,2]
[366053501,1750036251385,-1166.97,0.00016438,2]
[366053502,1750036251394,-490.0,0.00016438,2]
[366053503,1750036251403,-909.28,0.00016438,2]
[366053504,1750036251412,-151.0,0.00016438,2]
[366053505,1750036251421,-500.0,0.00016438,2]
[366053506,1750036251430,-151.0,0.00016438,2]
[366053507,1750036251439,-151.0,0.00016438,2]
[366053508,1750036251448,-490.0,0.00016438,2]
[366053509,1750036251458,-490.0,0.00016438,2]
[366053510,1750036251467,-589.77,0.00016438,2]
[366053511,1750036251476,-490.0,0.00016438,2]
[366053512,1750036251485,-1535.27,0.00016438,2]
[366053513,1750036251494,-490.0,0.00016438,2]
[366053514,1750036251503,-490.0,0.00016438,2]
[366053515,1750036251511,-1100.9,0.00016438,2]
[366053516,1750036251521,-490.0,0.00016438,2]
[366053517,1750036251531,-490.0,0.00016438,2]
[366053518,1750036251540,-8665.89,0.00016438,2]
[366053519,1750036251549,-665.63,0.00016438,2]
[366053520,1750036251558,-151.0,0.00016438,2]
[366053521,1750036251568,-151.0,0.00016438,2]
[366053522,1750036251578,-490.0,0.00016438,2]
[366053523,1750036251588,-151.0,0.00016438,2]
[366053524,1750036251597,-490.0,0.00016438,2]
[366053525,1750036251606,-1187.71,0.00016438,2]
[366053526,1750036251616,-720.44,0.00016438,2]
[366053527,1750036251626,-500.0,0.00016438,2]
[366053528,1750036251636,-500.0,0.00016438,2]
[366053529,1750036251645,-490.0,0.00016438,2]
[366053530,1750036251654,-3495.5,0.00016438,2]
[366053531,1750036251663,-4356.99,0.00016438,2]
[366053532,1750036251674,-1438.1,0.00016438,2]
[366053533,1750036251683,-506.43830112,0.00016438,2]
[366053534,1750036251691,-664.76,0.00016438,2]
[366053535,1750036251700,-151.0,0.00016438,2]
[366053536,1750036251709,-490.0,0.00016438,2]
[366053537,1750036251718,-1443.2,0.00016438,2]
[366053538,1750036251727,-151.0,0.00016438,2]
[366053539,1750036251736,-490.0,0.00016438,2]
[366053540,1750036251745,-151.0,0.00016438,2]
[366053541,1750036251754,-1275.6,0.00016438,2]
[366053542,1750036251763,-490.0,0.00016438,2]
[366053543,1750036251771,-490.0,0.00016438,2]
[366053544,1750036251782,-490.0,0.00016438,2]
[366053545,1750036251791,-417.50920506,0.00016438,2]
[366053546,1750036251800,-490.0,0.00016438,2]
[366053547,1750036251810,-2495.72,0.00016438,2]
[366053548,1750036251822,-490.0,0.00016438,2]
[366053549,1750036251831,-1442.42,0.00016438,2]
[366053550,1750036251840,-671.9,0.00016438,2]
[366053551,1750036251850,-490.0,0.00016438,2]
[366053552,1750036251859,-490.0,0.00016438,2]
[366053553,1750036251868,-3955.45,0.00016438,2]
[366053554,1750036251878,-3030.08,0.00016438,2]
[366053555,1750036251888,-490.0,0.00016438,2]
[366053556,1750036251898,-619.12,0.00016438,2]
[366053557,1750036251908,-682.87,0.00016438,2]
[366053558,1750036251918,-3580.92,0.00016438,2]
[366053559,1750036251928,-500.0,0.00016438,2]
[366053560,1750036251938,-500.0,0.00016438,2]
[366053561,1750036251948,-1501.39,0.00016438,2]
[366053562,1750036251957,-2747.04,0.00016438,2]
[366053563,1750036251967,-490.0,0.00016438,2]
[366053564,1750036251978,-2881.64,0.00016438,2]
[366053565,1750036251988,-626.99,0.00016438,2]
[366053566,1750036251997,-24198.33,0.00016438,2]
[366053567,1750036252006,-1014.37,0.00016438,2]
[366053568,1750036252015,-490.0,0.00016438,2]
[366053569,1750036252025,-9535.96,0.00016438,2]
[366053570,1750036252035,-490.0,0.00016438,2]
[366053571,1750036252044,-1768.04,0.00016438,2]
[366053572,1750036252053,-442.71833464,0.00016438,2]
[366053573,1750036252063,-490.0,0.00016438,2]
[366053574,1750036252072,-896.39,0.00016438,2]
[366053575,1750036252081,-490.0,0.00016438,2]
[366053576,1750036252091,-2070.39,0.00016438,2]
[366053577,1750036252100,-1436.07,0.00016438,2]
[366053578,1750036252109,-9028.15,0.00016438,2]
[366053579,1750036252119,-1745.91,0.00016438,2]
[366053580,1750036252128,-620.22,0.00016438,2]
[366053581,1750036252137,-253.743246,0.00016438,2]
[366053582,1750036252147,-253.743246,0.00016438,2]
[366053583,1750036252157,-548.52,0.00016438,2]
[366053584,1750036252166,-253.743246,0.00016438,2]
[366053585,1750036252176,-490.0,0.00016438,2]
[366053586,1750036252186,-253.743246,0.00016438,2]
[366053587,1750036252196,-253.743246,0.00016438,2]
[366053588,1750036252206,-500.08,0.00016438,2]
[366053589,1750036252216,-766.61,0.00016438,2]
[366053590,1750036252225,-253.743246,0.00016438,2]
[366053591,1750036252235,-490.0,0.00016438,2]
[366053592,1750036252245,-4059.07,0.00016438,2]
[366053593,1750036252255,-490.0,0.00016438,2]
[366053594,1750036252264,-490.0,0.00016438,2]
[366053595,1750036252274,-1017.09,0.00016438,2]
[366053596,1750036252286,-1933.17,0.00016438,2]
[366053597,1750036252295,-490.0,0.00016438,2]
[366053598,1750036252305,-151.357794,0.00016438,2]
[366053599,1750036252314,-490.0,0.00016438,2]
[366053600,1750036252324,-490.0,0.00016438,2]
[366053601,1750036252334,-848.61,0.00016438,2]
[366053602,1750036252343,-1002.26,0.00016438,2]
[366053603,1750036252352,-151.0,0.00016438,2]
[366053604,1750036252362,-490.0,0.00016438,2]
[366053605,1750036252371,-161.443012,0.00016438,2]
[366053606,1750036252381,-723.67,0.00016438,2]
[366053607,1750036252391,-902.84,0.00016438,2]
[366053608,1750036252400,-1013.12,0.00016438,2]
[366053609,1750036252409,-370.08837033,0.00016438,2]
[366053610,1750036252419,-1344.28,0.00016438,2]
[366053611,1750036252428,-6565.19,0.00016438,2]
[366053612,1750036252438,-593.84,0.00016438,2]
[366053613,1750036252448,-490.0,0.00016438,2]
[366053614,1750036252458,-1694.45,0.00016438,2]
[366053615,1750036252468,-2132.39,0.00016438,2]
[366053616,1750036252478,-1152.44,0.00016438,2]
[366053617,1750036252488,-601.68,0.00016438,2]
[366053618,1750036252498,-490.0,0.00016438,2]
[366053619,1750036252507,-490.0,0.00016438,2]
[366053620,1750036252516,-490.0,0.00016438,2]
[366053621,1750036252527,-490.0,0.00016438,2]
[366053622,1750036252538,-1145.48,0.00016438,2]
[366053623,1750036252547,-534.67,0.00016438,2]
[366053624,1750036252557,-2543.96,0.00016438,2]
[366053625,1750036252567,-490.0,0.00016438,2]
[366053626,1750036252576,-1068.51,0.00016438,2]
[366053627,1750036252586,-151.0,0.00016438,2]
[366053628,1750036252595,-490.0,0.00016438,2]
[366053629,1750036252606,-19697.71,0.00016438,2]
[366053630,1750036252615,-151.0,0.00016438,2]
[366053631,1750036252625,-660.13,0.00016438,2]
[366053632,1750036252635,-151.0,0.00016438,2]
[366053633,1750036252645,-500.0,0.00016438,2]
[366053634,1750036252655,-500.0,0.00016438,2]
[366053635,1750036252666,-938.42,0.00016438,2]
[366053636,1750036252675,-500.0,0.00016438,2]
[366053637,1750036252686,-500.0,0.00016438,2]
[366053638,1750036252695,-490.0,0.00016438,2]
[366053639,1750036252705,-500.0,0.00016438,2]
[366053640,1750036252714,-1062.24,0.00016438,2]
[366053641,1750036252724,-490.0,0.00016438,2]
[366053642,1750036252734,-1626.06,0.00016438,2]
[366053643,1750036252744,-490.0,0.00016438,2]
[366053644,1750036252754,-490.0,0.00016438,2]
[366053645,1750036252763,-1958.01,0.00016438,2]
[366053646,1750036252773,-464.71236688,0.00016438,2]
[366053647,1750036252788,-1814.37,0.00016438,2]
[366053648,1750036252797,-281.879542,0.00016438,2]
[366053649,1750036252807,-4990.05,0.00016438,2]
[366053650,1750036252821,-490.0,0.00016438,2]
[366053651,1750036252831,-281.879542,0.00016438,2]
[366053652,1750036252841,-490.0,0.00016438,2]
[366053653,1750036252852,-281.879542,0.00016438,2]
[366053654,1750036252862,-490.0,0.00016438,2]
[366053655,1750036252872,-666.4,0.00016438,2]
[366053656,1750036252884,-1675.72,0.00016438,2]
[366053657,1750036252895,-4178.13,0.00016438,2]
[366053658,1750036252905,-1337.21,0.00016438,2]
[366053659,1750036252915,-490.0,0.00016438,2]
[366053660,1750036252925,-1908.2,0.00016438,2]
[366053661,1750036252935,-490.0,0.00016438,2]
[366053662,1750036252944,-281.879542,0.00016438,2]
[366053663,1750036252954,-281.879542,0.00016438,2]
[366053664,1750036252963,-281.879542,0.00016438,2]
[366053665,1750036252973,-490.0,0.00016438,2]
[366053666,1750036252983,-4583.11,0.00016438,2]
[366053667,1750036252992,-490.0,0.00016438,2]
[366053668,1750036253002,-490.0,0.00016438,2]
[366053669,1750036253012,-264.57713058,0.00016438,2]
[366053670,1750036253022,-20642.54,0.00016438,2]
[366053671,1750036253034,-151.0,0.00016438,2]
[366053672,1750036253044,-151.0,0.00016438,2]
[366053673,1750036253053,-490.0,0.00016438,2]
[366053674,1750036253063,-151.0,0.00016438,2]
[366053675,1750036253073,-812.33,0.00016438,2]
[366053676,1750036253083,-490.0,0.00016438,2]
[366053677,1750036253092,-490.0,0.00016438,2]
[366053678,1750036253102,-151.0,0.00016438,2]
[366053679,1750036253112,-503.74279479,0.00016438,2]
[366053680,1750036253123,-1766.3,0.00016438,2]
[366053681,1750036253133,-4222.92,0.00016438,2]
[366053682,1750036253143,-490.0,0.00016438,2]
[366053683,1750036253153,-1658.3,0.00016438,2]
[366053684,1750036253162,-151.0,0.00016438,2]
[366053685,1750036253172,-490.0,0.00016438,2]
[366053686,1750036253181,-151.0,0.00016438,2]
[366053687,1750036253191,-1272.5,0.00016438,2]
[366053688,1750036253200,-151.0,0.00016438,2]
[366053689,1750036253210,-1575.86,0.00016438,2]
[366053690,1750036253220,-1749.82,0.00016438,2]
[366053691,1750036253229,-240.81977063,0.00016438,2]
[366053692,1750036253238,-490.0,0.00016438,2]
[366053693,1750036253249,-506.83,0.00016438,2]
[366053694,1750036253258,-490.0,0.00016438,2]
[366053695,1750036253267,-490.0,0.00016438,2]
[366053696,1750036253278,-1068.53,0.00016438,2]
[366053697,1750036253287,-490.0,0.00016438,2]
[366053698,1750036253297,-500.0,0.00016438,2]
[366053699,1750036253306,-500.0,0.00016438,2]
[366053700,1750036253316,-500.0,0.00016438,2]
[366053701,1750036253325,-1135.44,0.00016438,2]
[366053702,1750036253334,-500.0,0.00016438,2]
[366053703,1750036253343,-500.0,0.00016438,2]
[366053704,1750036253353,-500.0,0.00016438,2]
[366053705,1750036253362,-500.0,0.00016438,2]
[366053706,1750036253372,-1459.5,0.00016438,2]
[366053707,1750036253382,-500.0,0.00016438,2]
[366053708,1750036253397,-500.0,0.00016438,2]
[366053709,1750036253407,-2536.87,0.00016438,2]
[366053710,1750036253416,-584.15,0.00016438,2]
[366053711,1750036253425,-490.0,0.00016438,2]
[366053712,1750036253435,-490.0,0.00016438,2]
[366053713,1750036253444,-490.0,0.00016438,2]
[366053714,1750036253454,-500.0,0.00016438,2]
[366053715,1750036253464,-490.0,0.00016438,2]
[366053716,1750036253473,-26687.84,0.00016438,2]
[366053717,1750036253483,-166.20041602,0.00016439,2]
[366053718,1750036253492,-976.17814412,0.00016447,2]
[366053719,1750036253501,-500.0,0.00016465,2]
[366053720,1750036253511,-976.17814412,0.00016466,2]
[366053721,1750036253521,-166.20041602,0.00016471,2]
[366053722,1750036253531,-2347.87260389,0.00016474,2]
[366053723,1750036253541,-151.0,0.00016484,2]
[366053724,1750036253550,-509.214435,0.00016484,2]
[366053725,1750036253559,-509.214435,0.00016484,2]
[366053726,1750036253569,-1605.672843,0.00016484,2]
[366053727,1750036253579,-1605.672843,0.00016484,2]
[366053728,1750036253588,-298.373844,0.00016484,2]
[366053729,1750036253598,-298.373844,0.00016484,2]
[366053730,1750036253607,-833.72177943,0.00016485,2]
[366053731,1750036253618,-500.0,0.00016493,2]
[366053732,1750036253627,-155.0,0.00016499,2]
[366053733,1750036253637,-4090.0,0.00016499,2]
[366053734,1750036253646,-854.0,0.00016499,2]
[366053735,1750036253655,-7111.0,0.00016499,2]
[366053736,1750036253665,-300.0,0.000165,2]
[366053737,1750036253674,-2980886.2962352,0.00016501,2]
[366053738,1750036253684,-11.29673259,0.00016501,2]
[366053739,1750036255086,-490.0,0.00016438,2]
[366053740,1750036255096,-464.11428996,0.00016438,2]
[366053741,1750036255107,-490.0,0.00016438,2]
[366053742,1750036255118,-490.0,0.00016438,2]
[366053743,1750036255128,-293.69100495,0.00016438,2]
[366053744,1750036255138,-143.29144902,0.00016501,2]
[366053745,1750036255148,-166.20041602,0.00016502,2]
[366053746,1750036255158,-415.11741234,0.0001652,2]
[366053747,1750036255173,-2434.74389024,0.00016529,2]
[366053748,1750036255184,-39050.40119493,0.00016534,2]
[366053749,1750036255196,-3248.23,0.00016534,2]
[366053750,1750036255208,-191.643,0.00016534,2]
[366053751,1750036255219,-2524.82941417,0.00016584,2]
[366053752,1750036255230,-500.0,0.00016599,2]
[366053753,1750036255240,-500.0,0.000166,2]
[366053754,1750036255251,-151.0,0.00016601,2]
[366053755,1750036255261,-151.0,0.00016601,2]
[366053756,1750036255271,-151.0,0.00016601,2]
[366053757,1750036255282,-151.0,0.00016601,2]
[366053758,1750036255292,-228.746168,0.00016601,2]
[366053759,1750036255302,-228.746168,0.00016601,2]
[366053760,1750036255315,-500.0,0.00016601,2]
[366053761,1750036255325,-500.0,0.00016601,2]
[366053762,1750036255337,-500.0,0.00016601,2]
[366053763,1750036255348,-500.0,0.00016601,2]
[366053764,1750036255359,-151.0,0.00016601,2]
[366053765,1750036255369,-509.214435,0.00016601,2]
[366053766,1750036255380,-509.214435,0.00016601,2]
[366053767,1750036255392,-1605.672843,0.00016601,2]
[366053768,1750036255402,-1605.672843,0.00016601,2]
[366053769,1750036255413,-186.842048,0.00016601,2]
[366053770,1750036255424,-186.842048,0.00016601,2]
[366053771,1750036255434,-224.458841,0.00016601,2]
[366053772,1750036255444,-298.373844,0.00016601,2]
[366053773,1750036255455,-224.458841,0.00016601,2]
[366053774,1750036255466,-151.0,0.00016601,2]
[366053775,1750036255476,-298.373844,0.00016601,2]
[366053776,1750036255486,-500.0,0.00016601,2]
[366053777,1750036255496,-500.0,0.00016601,2]
[366053778,1750036255507,-500.0,0.00016601,2]
[366053779,1750036255518,-151.0,0.00016601,2]
[366053780,1750036255529,-151.0,0.00016601,2]
[366053781,1750036255540,-253.743246,0.00016601,2]
[366053782,1750036255550,-253.743246,0.00016601,2]
[366053783,1750036255560,-500.0,0.00016601,2]
[366053784,1750036255571,-500.0,0.00016601,2]
[366053785,1750036255581,-500.0,0.00016601,2]
[366053786,1750036255591,-500.0,0.00016601,2]
[366053787,1750036255601,-500.0,0.00016601,2]
[366053788,1750036255611,-500.0,0.00016601,2]
[366053789,1750036255626,-500.0,0.00016601,2]
[366053790,1750036255636,-500.0,0.00016601,2]
[366053791,1750036255647,-500.0,0.00016601,2]
[366053792,1750036255657,-500.0,0.00016601,2]
[366053793,1750036255668,-500.0,0.00016601,2]
[366053794,1750036255678,-500.0,0.00016601,2]